bitfinex/quotes_ETHUSD_20251117
["timestamp","ask_amount","ask_price","bid_price","bid_amount"]
[1763354051590,6.67766964,3191.2,3191.1,0.005]
[1763354051831,7.35348286,3191.2,3191.1,0.005]
[1763354052194,7.83678286,3191.2,3191.1,0.005]
[1763354052681,8.13035321,3191.2,3191.1,0.005]
[1763354053297,7.284787,3191.2,3191.1,0.005]
[1763354053519,8.63407493,3191.2,3191.1,0.005]
[1763354054220,9.47964114,3191.2,3191.1,0.005]
[1763354055896,8.63407493,3191.2,3191.1,0.005]
[1763354061293,0.405504,3191.0,3190.7,0.001]
[1763354061614,6.47760343,3190.8,3190.7,0.001]
[1763354061924,8.25703063,3190.8,3190.7,0.001]
[1763354062226,8.74083063,3190.8,3190.7,0.001]
[1763354063955,9.23298062,3190.8,3190.7,0.001]
[1763354064155,8.74083063,3190.8,3190.7,0.001]
[1763354065062,0.405504,3190.6,3189.7,0.1958]
[1763354065242,5.42179943,3190.2,3189.7,0.1958]
[1763354065442,5.71536978,3190.2,3190.1,0.0747]
[1763354065648,5.71536978,3190.2,3190.1,1.0699]
[1763354067155,6.2075251,3190.2,3190.1,1.0699]
[1763354067364,1.1337408,3190.2,3190.1,1.0699]
[1763354069165,5.42179943,3190.2,3190.1,1.0699]
[1763354069461,5.96397937,3190.2,3190.1,1.0699]
[1763354070162,5.42179943,3190.2,3190.1,1.0699]
[1763354071242,1.1337408,3190.2,3190.1,1.0699]
[1763354072766,5.42179943,3190.2,3190.1,0.5045]
[1763354073076,5.71501735,3190.2,3190.1,0.005]
[1763354073573,5.71501735,3190.2,3190.1,0.5045]
[1763354073774,6.28651909,3190.2,3190.1,0.5045]
[1763354074176,6.28651909,3190.2,3190.1,1.0699]
[1763354074391,5.71501735,3190.2,3190.1,1.0699]
[1763354074753,1.42695872,3190.2,3190.1,0.5742]
[1763354075082,1.42695872,3190.2,3190.1,0.005]
[1763354076182,1.42695872,3190.2,3190.1,0.5045]
[1763354076780,1.42695872,3190.2,3190.1,0.5742]
[1763354077274,1.42695872,3190.2,3190.1,0.5045]
[1763354078986,1.42695872,3190.2,3190.1,1.0699]
[1763354079800,1.42695872,3190.2,3190.1,0.5045]
[1763354080401,1.42695872,3190.2,3190.1,1.0699]
[1763354081006,1.91920716,3190.2,3190.1,1.0699]
[1763354081500,1.42695872,3190.2,3190.1,1.0699]
[1763354082790,4.58126263,3190.2,3190.1,1.0699]
[1763354083204,4.58126263,3190.2,3190.1,0.5742]
[1763354083522,6.17625964,3190.2,3190.1,0.005]
[1763354084171,5.71715964,3190.2,3190.1,0.005]
[1763354087176,6.17625964,3190.2,3190.1,0.005]
[1763354090019,6.17625964,3190.2,3189.7,0.1968]
[1763354090020,0.405504,3190.0,3189.7,0.001]
[1763354090176,4.20560791,3189.8,3189.7,0.001]
[1763354090377,5.90483338,3189.8,3189.7,0.001]
[1763354090578,0.29321792,3189.8,3189.7,0.9962]
[1763354090880,1.1337408,3189.9,3189.7,0.9962]
[1763354091078,0.29321792,3189.8,3189.7,0.9962]
[1763354091279,0.29321792,3189.8,3189.7,0.001]
[1763354091480,0.29321792,3189.8,3189.7,0.4542]
[1763354092015,0.29321792,3189.8,3189.7,0.9356]
[1763354092980,0.29321792,3189.8,3189.7,0.4542]
[1763354093278,0.86496327,3189.8,3189.7,0.4542]
[1763354093485,0.86496327,3189.8,3189.7,0.001]
[1763354093780,2.49222738,3189.8,3189.7,0.001]
[1763354094486,3.62596818,3189.8,3189.7,0.001]
[1763354094690,4.11833736,3189.8,3189.7,0.001]
[1763354095111,4.87884425,3189.8,3189.7,0.001]
[1763354095314,4.03147218,3189.8,3189.7,0.001]
[1763354096493,3.55007218,3189.8,3189.7,0.001]
[1763354097512,3.14456818,3189.8,3189.7,0.001]
[1763354098113,3.63693313,3189.8,3189.7,0.001]
[1763354098910,8.62702825,3189.8,3189.7,0.001]
[1763354100513,8.62620656,3189.8,3189.7,0.001]
[1763354101425,9.47263459,3189.8,3189.7,0.001]
[1763354102313,8.62620656,3189.8,3189.7,0.001]
[1763354102527,8.33298864,3189.8,3189.7,0.001]
[1763354102714,9.47324318,3189.8,3189.7,0.001]
[1763354102916,1.5392448,3189.7,3189.4,0.001]
[1763354103117,1.5392448,3189.7,3189.1,0.005]
[1763354103118,5.64243592,3189.2,3189.1,0.005]
[1763354103303,7.07660485,3189.2,3189.1,0.005]
[1763354103505,1.5392448,3189.1,3188.2,0.4814]
[1763354103724,5.23693192,3188.3,3188.2,0.4814]
[1763354103894,1.1337408,3188.2,3187.9,0.1879]
[1763354104433,0.1912,3188.6,3187.9,0.1879]
[1763354104434,0.405504,3189.0,3188.1,0.9396]
[1763354104615,1.1337408,3188.6,3188.2,0.9346]
[1763354104815,0.2935659,3188.5,3188.2,0.9346]
[1763354105029,0.2935659,3188.5,3188.1,0.005]
[1763354105030,1.1337408,3188.3,3188.1,0.005]
[1763354105235,1.1337408,3188.3,3188.1,0.4864]
[1763354105401,1.1337408,3188.6,3188.2,0.4532]
[1763354105730,0.2933947,3188.5,3188.3,0.9346]
[1763354106034,0.2933947,3188.5,3188.4,0.9346]
[1763354106726,1.1337408,3188.6,3188.4,0.9346]
[1763354106963,4.10319112,3189.2,3188.5,0.9346]
[1763354107095,1.016606,3189.6,3189.1,0.6417]
[1763354107302,0.29321264,3189.5,3189.1,0.1885]
[1763354107622,0.29321264,3189.5,3189.2,0.4814]
[1763354107801,0.29321264,3189.6,3189.4,0.4532]
[1763354108001,1.42695344,3189.6,3189.4,0.4532]
[1763354108262,1.73599175,3189.6,3189.5,0.4532]
[1763354108461,2.02917141,3189.6,3189.5,0.4532]
[1763354109280,0.29317966,3189.6,3189.5,0.4532]
[1763354109443,0.29317966,3189.6,3189.5,0.9346]
[1763354109759,1.42692046,3189.6,3189.5,0.9346]
[1763354110361,0.49236495,3189.8,3189.5,0.9346]
[1763354110550,1.62610575,3189.8,3189.7,0.4532]
[1763354110746,1.42694678,3189.8,3189.7,0.4532]
[1763354110935,1.42694678,3189.8,3189.7,0.9346]
[1763354113267,0.29320598,3189.8,3189.7,0.9346]
[1763354113563,0.2933208,3190.0,3189.7,0.9346]
[1763354113763,0.2933208,3190.0,3189.8,0.4814]
[1763354113962,0.2933208,3190.0,3189.9,0.4532]
[1763354114166,0.78562536,3190.0,3189.9,0.4532]
[1763354114530,2.40076616,3190.0,3189.9,0.9346]
[1763354115170,2.40076616,3190.0,3189.9,0.4532]
[1763354115330,3.05136189,3190.0,3189.9,0.4532]
[1763354116158,2.40076616,3190.0,3189.9,0.4532]
[1763354116361,2.40076616,3190.0,3189.9,0.9346]
[1763354117090,1.62604536,3190.0,3189.9,0.9346]
[1763354117282,0.49230456,3190.0,3189.9,0.9346]
[1763354117573,0.002,3190.6,3190.2,0.5476]
[1763354117889,0.002,3190.6,3190.5,0.4532]
[1763354118090,0.002,3190.6,3190.5,0.9346]
[1763354118457,0.30025246,3190.6,3190.5,0.9346]
[1763354118958,0.30025246,3190.6,3190.5,0.9195]
[1763354120210,0.002,3190.6,3190.5,0.9195]
[1763354121173,0.002,3190.6,3190.5,0.4532]
[1763354121549,0.002,3190.6,3190.5,0.9358]
[1763354122954,0.002,3190.6,3190.5,0.9633]
[1763354124716,0.002,3190.6,3190.0,0.0944]
[1763354124717,2.0778408,3190.6,3190.0,0.0944]
[1763354125012,1.1337408,3190.2,3190.0,0.0944]
[1763354125510,1.1337408,3190.2,3189.8,0.6672]
[1763354125676,5.23693192,3189.9,3189.8,0.1846]
[1763354126085,5.86282838,3189.9,3189.8,1.1479]
[1763354126280,1.1337408,3189.9,3189.8,1.1479]
[1763354128021,5.23693192,3189.9,3189.8,0.6653]
[1763354128319,1.1337408,3189.8,3189.6,0.1856]
[1763354128507,1.1337408,3189.8,3189.6,0.001]
[1763354128819,1.1337408,3189.8,3189.7,0.4807]
[1763354131034,1.62605302,3189.8,3189.7,0.4807]
[1763354131241,1.1337408,3189.8,3189.7,0.9633]
[1763354131731,1.1337408,3189.8,3189.7,0.4807]
[1763354132837,1.1337408,3189.8,3189.7,0.9633]
[1763354133704,1.1337408,3189.8,3189.7,0.4807]
[1763354133910,2.30723399,3189.8,3189.6,0.001]
[1763354134144,0.405504,3189.6,3188.1,0.005]
[1763354134414,1.1337408,3188.5,3188.1,0.005]
[1763354134609,1.65743399,3188.5,3188.1,0.005]
[1763354134824,1.1337408,3188.5,3188.4,0.4807]
[1763354135201,0.1888,3189.3,3188.4,0.9633]
[1763354135202,4.10319112,3189.1,3188.4,0.9633]
[1763354135406,1.42675317,3189.0,3188.5,0.9633]
[1763354135643,0.29301237,3188.9,3188.5,0.9633]
[1763354135839,0.29301237,3188.9,3188.6,0.4826]
[1763354136135,0.29301237,3188.9,3188.8,0.4807]
[1763354136304,0.29301237,3188.9,3188.2,0.5716]
[1763354136504,1.1337408,3188.7,3188.2,0.089]
[1763354136838,1.1337408,3188.4,3188.2,0.089]
[1763354137317,1.1337408,3188.4,3188.1,0.005]
[1763354137902,1.62621857,3188.4,3188.1,0.005]
[1763354138416,0.6672,3188.3,3188.1,0.005]
[1763354138861,0.6672,3188.3,3188.2,0.4807]
[1763354139650,0.6672,3188.3,3188.1,0.005]
[1763354141749,0.6672,3188.3,3188.2,0.4807]
[1763354142074,0.49247777,3188.4,3188.2,0.9633]
[1763354142263,0.49247777,3188.4,3188.3,0.9633]
[1763354142422,4.10319112,3189.0,3188.3,0.9633]
[1763354142624,0.94314857,3188.7,3188.5,0.4807]
[1763354142822,0.94314857,3188.7,3188.4,0.4826]
[1763354143137,1.1337408,3189.1,3188.6,0.4807]
[1763354143314,0.4826,3189.1,3188.4,0.4826]
[1763354143514,0.4826,3189.1,3189.0,0.4807]
[1763354144119,1.1337408,3189.0,3188.1,0.0973]
[1763354144317,1.1337408,3189.0,3188.2,0.4826]
[1763354144920,0.4826,3188.9,3188.2,0.4826]
[1763354145362,0.49241765,3188.8,3188.2,0.4826]
[1763354145538,0.49241765,3188.8,3188.3,0.1846]
[1763354145741,0.49241765,3188.8,3188.7,0.4807]
[1763354145963,0.97501765,3188.8,3188.7,0.4807]
[1763354146144,4.10319112,3190.4,3188.7,1.368804]
[1763354146351,0.29214238,3190.3,3189.8,0.348]
[1763354146674,0.77472419,3190.3,3189.8,0.348]
[1763354146878,0.4826,3190.3,3189.8,0.348]
[1763354147048,1.6163408,3190.3,3189.8,0.348]
[1763354147637,1.1337408,3190.0,3188.5,1.1337408]
[1763354147844,4.10319112,3189.8,3188.6,0.52281462]
[1763354148263,4.10319112,3189.8,3188.7,0.348]
[1763354148470,1.1337408,3189.7,3188.7,0.348]
[1763354149580,0.4923296,3189.5,3188.7,0.348]
[1763354150774,0.9734296,3189.5,3188.6,0.348]
[1763354150944,5.07662072,3189.5,3188.3,0.1846]
[1763354151146,4.10319112,3189.2,3188.3,0.1846]
[1763354151565,0.4787,3189.1,3188.3,0.1846]
[1763354153158,1.6124408,3189.1,3188.3,0.1846]
[1763354153568,2.0189448,3189.4,3188.3,0.1846]
[1763354153983,0.4787,3189.3,3188.3,0.1846]
[1763354155586,1.5402448,3189.4,3188.3,0.5326]
[1763354155756,1.5402448,3189.4,3188.4,0.348]
[1763354156086,1.6124408,3189.4,3188.4,0.348]
[1763354156484,0.348,3189.3,3188.4,0.348]
[1763354156889,0.348,3189.3,3188.3,0.1846]
[1763354157166,0.348,3189.3,3188.1,0.005]
[1763354157167,4.10319112,3189.1,3188.1,0.005]
[1763354157307,4.10319112,3188.8,3188.1,0.005]
[1763354157670,0.6736,3188.7,3188.1,0.005]
[1763354157874,1.8073408,3188.7,3188.1,0.005]
[1763354158321,0.1846,3188.6,3188.1,0.005]
[1763354158892,0.6633,3188.6,3188.1,0.005]
[1763354161214,0.1846,3188.6,3188.1,0.005]
[1763354163202,0.67706469,3188.6,3188.1,0.005]
[1763354163424,0.1846,3188.6,3188.1,0.005]
[1763354166399,0.6633,3188.6,3188.1,0.005]
[1763354166826,0.49247273,3188.5,3188.1,0.005]
[1763354167301,0.002,3189.5,3188.4,0.3482]
[1763354167501,0.002,3189.5,3188.5,0.3482]
[1763354167732,0.49241905,3188.9,3188.5,0.3482]
[1763354167923,0.4787,3189.4,3188.5,0.3482]
[1763354168120,0.29338196,3189.3,3188.5,0.3482]
[1763354168540,0.4708,3188.6,3188.1,0.005]
[1763354168840,1.1337408,3189.0,3188.1,0.005]
[1763354169038,0.1949,3188.9,3188.1,0.005]
[1763354169334,0.1846,3189.1,3188.1,0.005]
[1763354169636,0.1846,3189.1,3188.1,0.3532]
[1763354169637,0.6633,3189.1,3188.1,0.3532]
[1763354169934,0.7722116,3189.0,3188.1,0.3532]
[1763354170100,0.4787,3189.0,3188.1,0.3532]
[1763354171009,0.49242593,3188.8,3188.1,0.3532]
[1763354171615,0.97112593,3188.8,3188.1,0.005]
[1763354173418,0.49242593,3188.8,3188.1,0.3532]
[1763354173819,0.49242593,3188.8,3188.7,0.3482]
[1763354174045,0.6736,3189.3,3188.7,0.3482]
[1763354174222,0.49241605,3188.8,3188.7,0.3482]
[1763354174551,0.4708,3188.8,3188.1,0.005]
[1763354174749,0.4708,3188.5,3188.1,0.005]
[1763354175249,0.4787,3188.7,3188.1,0.005]
[1763354175455,0.4726,3189.0,3188.4,0.3482]
[1763354175653,0.2937267,3188.9,3188.4,0.3482]
[1763354176156,0.4726,3188.8,3188.4,0.3482]
[1763354176718,0.4726,3188.8,3188.1,0.005]
[1763354177649,0.4828,3188.2,3188.1,0.005]
[1763354178051,0.9554,3188.2,3188.1,0.005]
[1763354178362,1.24935514,3188.2,3188.1,0.005]
[1763354180864,1.7418931,3188.2,3188.1,0.005]
[1763354185664,1.7418931,3188.2,3188.1,0.3532]
[1763354185665,0.49253796,3188.2,3188.1,0.3532]
[1763354185867,0.49253796,3188.2,3188.1,0.865]
[1763354186237,0.002,3188.8,3188.1,0.865]
[1763354186435,0.29402619,3188.7,3188.1,0.5168]
[1763354187266,0.464,3188.8,3188.1,0.5168]
[1763354187677,0.002,3188.8,3188.1,0.865]
[1763354188179,0.002,3188.8,3188.2,0.3482]
[1763354189179,0.002,3188.8,3188.1,0.1686]
[1763354191267,0.002,3188.8,3188.7,0.3482]
[1763354191670,0.002,3188.8,3188.7,0.6964]
[1763354193374,0.002,3188.8,3188.7,0.3482]
[1763354196049,0.464,3189.5,3188.7,0.3482]
[1763354197046,0.002,3189.5,3188.8,0.3482]
[1763354197380,0.002,3189.5,3189.4,0.3482]
[1763354197784,0.002,3189.5,3189.4,0.6964]
[1763354198781,0.002,3189.5,3188.6,0.3482]
[1763354198782,0.4766,3189.5,3188.6,0.3482]
[1763354198981,0.002,3189.2,3188.6,0.3482]
[1763354199349,0.002,3189.2,3189.1,0.3482]
[1763354201054,0.002,3189.2,3188.5,0.3482]
[1763354201361,0.002,3189.2,3189.1,0.3482]
[1763354202089,0.002,3189.2,3189.1,0.6964]
[1763354202671,0.002,3189.2,3189.1,0.3482]
[1763354207913,0.002,3189.2,3189.1,1.101904]
[1763354209211,0.002,3189.2,3189.1,5.39638488]
[1763354209412,0.002,3189.2,3189.1,7.06976417]
[1763354209721,0.002,3189.2,3189.1,0.88783849]
[1763354210015,0.002,3189.2,3189.1,0.6964]
[1763354211812,0.002,3189.2,3189.1,0.3482]
[1763354212120,0.002,3189.2,3189.1,0.6964]
[1763354212324,0.002,3189.2,3189.1,0.3482]
[1763354213542,0.002,3189.2,3189.1,0.6964]
[1763354213718,0.002,3189.2,3189.1,0.3482]
[1763354215187,0.002,3189.2,3189.1,0.6964]
[1763354216599,0.002,3189.2,3189.1,0.3482]
[1763354216802,0.002,3189.2,3189.0,0.001]
[1763354216980,0.002,3189.2,3189.1,0.3482]
[1763354217396,0.002,3189.2,3189.1,0.6964]
[1763354218024,0.002,3189.2,3189.1,0.3482]
[1763354219322,0.002,3189.2,3189.0,0.001]
[1763354225628,0.4779,3189.1,3189.0,0.001]
[1763354226127,0.9657,3189.1,3189.0,0.001]
[1763354226828,4.12203496,3189.1,3189.0,0.001]
[1763354227448,0.9657,3189.1,3189.0,0.001]
[1763354228232,0.002,3189.2,3189.0,0.3492]
[1763354228396,0.4779,3189.1,3189.0,0.001]
[1763354228821,0.002,3189.2,3189.0,0.001]
[1763354229029,0.4779,3189.1,3189.0,0.001]
[1763354231103,0.002,3189.2,3189.0,0.3492]
[1763354231306,0.002,3189.2,3189.1,0.3482]
[1763354231510,0.002,3189.2,3189.1,0.7335735]
[1763354232565,0.002,3189.2,3189.1,0.3482]
[1763354232969,0.002,3189.2,3189.0,0.001]
[1763354233179,0.002,3189.2,3189.1,0.3482]
[1763354234160,0.002,3189.2,3189.1,0.6964]
[1763354234344,0.002,3189.2,3189.1,3.50453496]
[1763354234548,0.002,3189.2,3189.1,4.20328846]
[1763354235559,0.002,3189.2,3189.1,3.85508846]
[1763354235929,0.002,3189.2,3189.1,4.60879246]
[1763354236331,0.002,3189.2,3189.1,1.1042575]
[1763354236536,0.002,3189.2,3189.1,4.25823896]
[1763354237329,0.002,3189.2,3189.1,1.101904]
[1763354237530,0.002,3189.2,3189.1,4.25823896]
[1763354238975,0.002,3189.2,3189.1,5.39197976]
[1763354239334,0.002,3189.5,3189.2,1.5392448]
[1763354239534,0.002,3189.5,3189.4,8.20011472]
[1763354239989,0.002,3189.9,3189.4,8.20011472]
[1763354239990,0.002,3189.9,3189.5,2.2356448]
[1763354240190,0.002,3189.9,3189.8,8.20011472]
[1763354240540,0.002,3189.9,3189.8,8.54831472]
[1763354240742,0.002,3189.9,3189.8,6.33241863]
[1763354240956,0.002,3189.9,3189.8,6.96566049]
[1763354247044,0.002,3189.9,3189.8,2.52068666]
[1763354247384,0.002,3189.9,3189.8,1.8874448]
[1763354248867,0.002,3189.9,3189.8,0.753704]
[1763354249071,0.002,3189.9,3189.8,0.405504]
[1763354249460,0.002,3189.9,3189.8,0.753704]
[1763354250061,0.002,3189.9,3189.8,5.19867783]
[1763354250257,0.002,3189.9,3189.8,5.71854561]
[1763354250976,0.002,3189.9,3189.8,6.85228641]
[1763354251377,0.002,3190.2,3189.9,1.5392448]
[1763354251577,0.002,3190.2,3190.1,6.16881863]
[1763354252476,0.002,3190.2,3190.1,2.0720448]
[1763354252676,0.002,3190.2,3190.1,2.31406928]
[1763354253182,0.4984,3190.2,3190.1,1.78126928]
[1763354253383,0.9603,3190.2,3190.1,0.24202448]
[1763354253588,0.9603,3190.2,3189.7,1.1337408]
[1763354253783,0.002,3190.2,3189.8,0.405504]
[1763354254264,0.6861,3189.9,3189.5,0.001]
[1763354254463,0.4793,3189.8,3189.5,0.001]
[1763354254695,0.4793,3189.8,3189.5,0.406504]
[1763354255394,0.002,3190.2,3189.7,0.405504]
[1763354255701,0.4639,3190.2,3189.7,0.405504]
[1763354256197,0.4639,3190.2,3189.5,0.406504]
[1763354257306,0.4639,3190.2,3189.5,0.001]
[1763354257307,0.6861,3189.6,3189.5,0.001]
[1763354257799,1.148,3189.6,3189.5,0.001]
[1763354259081,0.1897,3189.9,3189.5,0.001]
[1763354259994,0.6516,3189.9,3189.5,0.001]
[1763354260187,0.002,3190.2,3189.8,0.3482]
[1763354260572,0.4639,3190.2,3189.5,0.754704]
[1763354260768,0.4639,3190.2,3189.9,3.15267589]
[1763354261296,0.002,3190.2,3190.1,3.15267589]
[1763354263117,0.9603,3190.2,3190.1,3.15267589]
[1763354264005,0.002,3190.2,3190.1,3.15267589]
[1763354264381,0.002,3190.2,3190.1,3.50087589]
[1763354264575,0.4984,3190.2,3190.1,3.50276348]
[1763354265474,0.002,3190.2,3190.1,3.50276348]
[1763354265990,0.4984,3190.2,3190.1,3.50276348]
[1763354266603,0.4984,3190.2,3190.1,0.35008759]
[1763354266789,0.9603,3190.2,3190.1,0.35008759]
[1763354267903,0.9603,3190.2,3190.1,3.50276348]
[1763354267904,0.4984,3190.2,3190.1,3.50276348]
[1763354268106,0.002,3190.2,3190.1,3.50276348]
[1763354268305,0.4984,3190.2,3190.1,3.50276348]
[1763354268702,0.9603,3190.2,3190.1,0.35008759]
[1763354269011,0.4984,3190.2,3189.8,3.15267589]
[1763354269415,0.4619,3190.1,3189.8,3.15267589]
[1763354269934,0.4964,3189.9,3189.8,0.405504]
[1763354270985,0.002,3190.2,3189.8,0.405504]
[1763354271199,0.002,3190.2,3189.8,3.55817989]
[1763354271526,0.457,3190.2,3189.9,0.35581799]
[1763354274098,0.4563,3190.0,3189.9,0.35581799]
[1763354274712,0.457,3190.2,3189.9,0.35581799]
[1763354274905,0.457,3190.2,3190.0,3.15267589]
[1763354275520,0.4563,3190.1,3190.0,3.15267589]
[1763354275719,0.4563,3190.1,3190.0,3.54407568]
[1763354276926,0.002,3190.2,3190.0,3.54407568]
[1763354277427,0.00074602,3190.2,3190.0,3.54407568]
[1763354277632,0.4563,3190.1,3190.0,3.54407568]
[1763354278501,0.9113,3190.1,3190.0,3.54407568]
[1763354278810,0.4563,3190.1,3190.0,3.54407568]
[1763354282523,0.00074602,3190.2,3190.0,3.54407568]
[1763354282723,0.00074602,3190.2,3190.1,0.35440757]
[1763354283214,0.91204602,3190.2,3190.1,0.35440757]
[1763354283815,0.00074602,3190.2,3190.1,0.70260757]
[1763354284346,0.45704602,3190.2,3190.1,0.35440757]
[1763354284513,0.91204602,3190.2,3190.0,3.15267589]
[1763354284841,0.4563,3190.1,3189.8,0.405504]
[1763354285044,0.9113,3190.1,3189.8,0.405504]
[1763354285614,0.4563,3190.1,3189.8,0.405504]
[1763354285814,0.9113,3190.1,3189.9,0.35582229]
[1763354287846,0.9113,3190.0,3189.5,0.001]
[1763354288054,0.5304,3189.6,3189.5,0.001]
[1763354288222,0.64,3189.9,3189.5,0.3492]
[1763354288630,0.64,3189.9,3189.8,0.001]
[1763354289152,1.0963,3189.9,3189.8,0.001]
[1763354290224,0.6413,3189.9,3189.8,0.001]
[1763354290913,1.0963,3189.9,3189.8,0.001]
[1763354294040,0.002,3190.1,3189.8,0.001]
[1763354294362,0.457,3190.1,3189.8,0.001]
[1763354294673,0.4563,3189.9,3189.8,0.001]
[1763354294838,0.002,3190.1,3189.9,3.15271891]
[1763354295041,0.002,3190.1,3189.8,0.001]
[1763354295540,0.457,3190.1,3189.8,0.001]
[1763354296126,0.6413,3189.9,3189.8,0.001]
[1763354296532,1.0963,3189.9,3189.8,0.001]
[1763354301447,1.39041785,3189.9,3189.8,0.001]
[1763354301662,1.95830561,3189.9,3189.5,0.001]
[1763354301856,0.4636,3189.6,3189.5,0.001]
[1763354302240,0.9453,3189.6,3189.5,0.001]
[1763354303765,0.4636,3189.6,3189.5,0.001]
[1763354304270,0.185,3189.9,3189.5,0.001]
[1763354304439,0.4636,3189.6,3189.5,0.001]
[1763354304971,0.185,3189.9,3189.5,0.001]
[1763354305178,0.4636,3189.6,3189.5,0.001]
[1763354305838,0.185,3189.9,3189.5,0.3492]
[1763354306173,0.002,3190.1,3189.5,0.69949189]
[1763354306374,0.002,3190.1,3189.7,3.15271891]
[1763354306578,0.002,3190.1,3190.0,3.90642291]
[1763354306772,0.002,3190.1,3190.0,0.753704]
[1763354307072,0.002,3190.1,3190.0,3.90642291]
[1763354307590,0.002,3190.1,3190.0,4.2970652]
[1763354308586,0.002,3190.1,3190.0,4.6452652]
[1763354309466,0.002,3190.1,3190.0,4.2970652]
[1763354309666,0.002,3190.1,3190.0,3.9488652]
[1763354310289,0.002,3190.1,3190.0,4.2970652]
[1763354314463,0.002,3190.1,3190.0,0.39064229]
[1763354314663,0.9473,3190.1,3189.5,0.001]
[1763354315092,0.4817,3190.0,3189.5,0.001]
[1763354315290,0.4636,3189.6,3189.5,0.001]
[1763354315488,0.002,3190.1,3189.5,0.001]
[1763354315692,0.002,3190.1,3189.7,3.15271891]
[1763354317786,0.4837,3190.1,3189.7,3.15271891]
[1763354320086,0.002,3190.1,3189.7,3.15271891]
[1763354321886,0.4837,3190.1,3189.7,3.15271891]
[1763354327212,0.002,3190.1,3189.7,3.15271891]
[1763354327522,0.002,3190.1,3189.7,3.49963799]
[1763354327720,0.002,3190.1,3190.0,0.3482]
[1763354327899,0.002,3190.1,3189.9,3.15271891]
[1763354330933,0.4636,3190.0,3189.9,3.15271891]
[1763354331319,0.9453,3190.0,3189.9,3.15271891]
[1763354331844,0.9544,3190.0,3189.6,3.15271891]
[1763354331994,0.4776,3189.8,3189.6,3.15271891]
[1763354332193,0.4928,3190.1,3189.6,3.15271891]
[1763354332546,0.4928,3190.1,3189.7,0.3482]
[1763354336694,0.4928,3190.1,3189.6,3.15271891]
[1763354337301,0.4928,3190.1,3189.7,0.31537189]
[1763354337506,0.4928,3190.1,3189.6,3.15271891]
[1763354340110,0.4803,3189.7,3189.6,3.15271891]
[1763354340455,0.4803,3189.7,3189.5,0.001]
[1763354340456,0.9711,3189.7,3189.5,0.001]
[1763354340639,0.4703,3189.6,3189.5,0.001]
[1763354341142,0.186,3189.9,3189.5,0.001]
[1763354341319,0.002,3190.1,3189.8,0.3482]
[1763354341525,0.002,3190.1,3189.9,3.15271891]
[1763354342240,0.002,3190.1,3190.0,0.3482]
[1763354342447,0.002,3190.1,3189.9,3.15271891]
[1763354343450,0.002,3190.1,3190.0,0.3482]
[1763354343654,0.002,3190.1,3189.9,3.15271891]
[1763354343945,0.002,3190.1,3189.9,3.4679908]
[1763354345348,0.002,3190.1,3190.0,0.3482]
[1763354345854,0.002,3190.1,3189.9,3.4679908]
[1763354346916,0.002,3190.1,3190.0,3.15232494]
[1763354347317,0.002,3190.1,3190.0,3.50052494]
[1763354347544,0.002,3190.1,3190.0,7.43993356]
[1763354347744,0.002,3190.1,3190.0,8.92187436]
[1763354348148,0.002,3190.8,3190.4,0.3482]
[1763354348415,0.007,3190.9,3190.7,0.3982]
[1763354348615,0.007,3190.9,3190.6,3.15232494]
[1763354348616,0.193,3190.9,3190.6,3.15232494]
[1763354348838,0.193,3190.9,3190.8,3.15232494]
[1763354348839,0.007,3190.9,3190.8,3.15232494]
[1763354349238,0.4873,3190.9,3190.8,3.15232494]
[1763354349936,0.007,3190.9,3190.8,3.50052494]
[1763354350332,0.007,3190.9,3190.8,3.15232494]
[1763354351072,0.4873,3190.9,3190.8,3.15232494]
[1763354351250,0.007,3190.9,3190.8,3.81575743]
[1763354352343,0.007,3190.9,3190.8,7.37358637]
[1763354353325,0.007,3190.9,3190.8,8.85552717]
[1763354354755,0.007,3190.9,3190.8,8.70550717]
[1763354361766,0.002,3191.2,3190.9,1.8874448]
[1763354361931,0.002,3191.2,3191.1,7.05835388]
[1763354362332,0.002,3191.2,3191.1,7.40655388]
[1763354362860,0.002,3191.2,3191.1,0.405504]
[1763354363051,0.002,3191.2,3191.1,3.55782894]
[1763354363258,0.002,3191.2,3191.1,3.90602894]
[1763354363443,0.002,3191.2,3191.1,4.29663183]
[1763354364634,0.002,3191.2,3191.1,7.79715677]
[1763354365634,0.002,3191.2,3191.1,4.29663183]
[1763354366654,0.002,3191.2,3191.1,7.44895677]
[1763354366855,0.002,3191.2,3191.1,4.29663183]
[1763354367054,0.002,3191.2,3191.1,3.94843183]
[1763354367259,0.002,3191.2,3191.1,4.29663183]
[1763354368087,0.002,3191.2,3191.1,3.94843183]
[1763354368351,0.002,3191.2,3191.1,4.29663183]
[1763354370471,0.002,3191.2,3191.1,7.44895677]
[1763354370671,0.002,3191.2,3191.1,4.29663183]
[1763354373293,0.002,3191.2,3191.1,7.79715677]
[1763354373863,0.002,3191.3,3191.2,0.405504]
[1763354374181,0.002,3191.3,3191.2,3.05591088]
[1763354374559,0.002,3191.3,3191.2,2.70771088]
[1763354374759,0.002,3191.3,3191.2,3.05591088]
[1763354374996,0.002,3191.6,3191.5,0.455504]
[1763354375201,0.002,3191.6,3191.5,8.24209468]
[1763354375408,0.002,3191.6,3191.5,9.39239384]
[1763354375594,0.002,3191.6,3191.5,9.34239384]
[1763354377216,0.007,3191.9,3191.6,1.5392448]